fUSD/lending_fUSD_20250421
["ID","MTS","AMOUNT","RATE_DAILY","PERIOD"]
[358566281,1745269098654,-500.0,0.00049315,120]
[358566282,1745269098679,-1573.28,0.00049315,120]
[358566283,1745269098705,-500.0,0.00049315,120]
[358566284,1745269098732,-500.0,0.00049315,120]
[358566285,1745269098757,-500.0,0.00049315,120]
[358566286,1745269098783,-500.0,0.00049315,120]
[358566287,1745269098808,-500.0,0.00049315,120]
[358566288,1745269098833,-500.0,0.00049315,120]
[358566289,1745269098858,-583.29,0.00049315,120]
[358566290,1745269098883,-834.44,0.00049315,120]
[358566291,1745269098908,-500.0,0.00049315,120]
[358566292,1745269098934,-500.0,0.00049315,120]
[358566293,1745269098960,-500.0,0.00049315,120]
[358566294,1745269098986,-1422.93,0.00049315,120]
[358566295,1745269099011,-500.0,0.00049315,120]
[358566296,1745269099037,-973.17,0.00049315,120]
[358566297,1745269099062,-500.0,0.00049315,120]
[358566298,1745269099089,-2437.85,0.00049315,120]
[358566299,1745269099115,-500.0,0.00049315,120]
[358566300,1745269099141,-901.45,0.00049315,120]
[358566301,1745269099166,-997.67,0.00049315,120]
[358566302,1745269099191,-500.0,0.00049315,120]
[358566303,1745269099218,-476.86,0.00049315,120]
[358566304,1745269099408,-500.0,0.00049315,120]
[358566305,1745269099438,-4246.26,0.00049315,120]
[358566306,1745269099465,-783.77,0.00049315,120]
[358566307,1745269099492,-500.0,0.00049315,120]
[358566308,1745269099519,-3240.43,0.00049315,120]
[358566309,1745269099544,-500.0,0.00049315,120]
[358566310,1745269099570,-1596.74,0.00049315,120]
[358566311,1745269099596,-518.73,0.00049315,120]
[358566312,1745269099622,-2454.7,0.00049315,120]
[358566313,1745269099648,-919.49,0.00049315,120]
[358566314,1745269099678,-500.0,0.00049315,120]
[358566315,1745269099704,-7835.4,0.00049315,120]
[358566316,1745269099733,-804.59,0.00049315,120]
[358566317,1745269099759,-877.83,0.00049315,120]
[358566318,1745269099785,-7213.9,0.00049315,120]
[358566319,1745269099810,-1289.89,0.00049315,120]
[358566320,1745269099836,-1375.34,0.00049315,120]
[358566321,1745269099862,-963.95,0.00049315,120]
[358566322,1745269099888,-1393.67,0.00049315,120]
[358566323,1745269099914,-864.57,0.00049315,120]
[358566324,1745269099939,-500.0,0.00049315,120]
[358566325,1745269099964,-1022.68,0.00049315,120]
[358566326,1745269099990,-1100.11,0.00049315,118]
[358566327,1745269100017,-569.75,0.00049315,120]
[358566328,1745269100042,-1668.15,0.00049315,120]
[358566329,1745269100067,-500.0,0.00049315,120]
[358566330,1745269100094,-859.56,0.00049315,120]
[358566331,1745269100120,-1952.74,0.00049315,120]
[358566332,1745269100148,-500.0,0.00049315,120]
[358566333,1745269100173,-511.37,0.00049315,120]
[358566334,1745269100199,-662.83,0.00049315,120]
[358566335,1745269100225,-500.0,0.00049315,120]
[358566336,1745269100252,-1343.12,0.00049315,120]
[358566337,1745269100278,-574.9,0.00049315,120]
[358566338,1745269100305,-868.91,0.00049315,120]
[358566339,1745269100333,-1348.97,0.00049315,120]
[358566340,1745269100363,-2236.11,0.00049315,120]
[358566341,1745269100390,-561.55,0.00049315,120]
[358566342,1745269100417,-500.0,0.00049315,120]
[358566343,1745269100444,-445.36573964,0.00049315,120]
[358566344,1745269100470,-1248.18,0.00049315,120]
[358566345,1745269100495,-996.82,0.00049315,120]
[358566346,1745269100523,-1058.05,0.00049315,120]
[358566347,1745269100552,-279.0,0.00049315,120]
[358566348,1745269100580,-500.0,0.00049315,120]
[358566349,1745269100607,-2581.69,0.00049315,120]
[358566350,1745269100633,-398.92380032,0.00049315,120]
[358566351,1745269100660,-1410.47,0.00049315,120]
[358566352,1745269100685,-500.0,0.00049315,120]
[358566353,1745269100710,-500.0,0.00049315,120]
[358566354,1745269100736,-508.66,0.00049315,120]
[358566355,1745269100763,-743.94,0.00049315,120]
[358566356,1745269100788,-955.73,0.00049315,120]
[358566357,1745269100812,-1494.95,0.00049315,120]
[358566358,1745269100839,-2301.25,0.00049315,120]
[358566359,1745269100867,-500.0,0.00049315,120]
[358566360,1745269100893,-500.0,0.00049315,120]
[358566361,1745269100919,-1053.78,0.00049315,120]
[358566362,1745269100944,-1074.12,0.00049315,120]
[358566363,1745269100968,-1020.13,0.00049315,120]
[358566364,1745269100993,-674.89,0.00049315,120]
[358566365,1745269101018,-300.0,0.00049315,120]
[358566366,1745269101044,-1637.73,0.00049315,120]
[358566367,1745269101071,-500.0,0.00049315,120]
[358566368,1745269101096,-889.4,0.00049315,120]
[358566369,1745269101121,-500.0,0.00049315,120]
[358566370,1745269101146,-500.0,0.00049315,120]
[358566371,1745269101172,-1570.7,0.00049315,120]
[358566372,1745269101198,-2220.57,0.00049315,120]
[358566373,1745269101224,-559.46327315,0.00049315,120]
[358566374,1745269101250,-500.0,0.00049315,120]
[358566375,1745269101278,-500.0,0.00049315,120]
[358566376,1745269101303,-2278.19,0.00049315,120]
[358566377,1745269101328,-500.0,0.00049315,120]
[358566378,1745269101357,-1605.45,0.00049315,120]
[358566379,1745269101384,-1339.26,0.00049315,120]
[358566380,1745269101410,-500.0,0.00049315,120]
[358566381,1745269101436,-1056.06,0.00049315,120]
[358566382,1745269101463,-831.47,0.00049315,120]
[358566383,1745269101488,-500.0,0.00049315,120]
[358566384,1745269101514,-2998.83,0.00049315,120]
[358566385,1745269101544,-31725.04,0.000494,60]
[358566386,1745269101568,-370.98420165,0.000495,120]
[358566387,1745269101594,-474.0,0.00049589,60]
[358566388,1745269101621,-474.0,0.00049589,60]
[358566389,1745269101646,-474.0,0.00049589,60]
[358566390,1745269101672,-474.0,0.00049589,60]
[358566391,1745269101698,-474.0,0.00049589,60]
[358566392,1745269101725,-474.0,0.00049589,60]
[358566393,1745269101752,-474.0,0.00049589,60]
[358566394,1745269101778,-474.0,0.00049589,60]
[358566395,1745269101804,-474.0,0.00049589,60]
[358566396,1745269101831,-474.0,0.00049589,60]
[358566397,1745269101858,-474.0,0.00049589,60]
[358566398,1745269101885,-474.0,0.00049589,60]
[358566399,1745269102100,-474.0,0.00049589,60]
[358566400,1745269102127,-253.0,0.00049589,60]
[358566401,1745269102152,-253.0,0.00049589,60]
[358566402,1745269102178,-253.0,0.00049589,60]
[358566403,1745269102204,-253.0,0.00049589,60]
[358566404,1745269102229,-253.0,0.00049589,60]
[358566405,1745269102254,-253.0,0.00049589,60]
[358566406,1745269102280,-253.0,0.00049589,60]
[358566407,1745269102306,-253.0,0.00049589,60]
[358566408,1745269102334,-253.0,0.00049589,60]
[358566409,1745269102364,-253.0,0.00049589,60]
[358566410,1745269102391,-253.0,0.00049589,60]
[358566411,1745269102417,-253.0,0.00049589,60]
[358566412,1745269102443,-253.0,0.00049589,60]
[358566413,1745269102472,-474.0,0.00049589,60]
[358566414,1745269102499,-474.0,0.00049589,60]
[358566415,1745269102528,-474.0,0.00049589,60]
[358566416,1745269102557,-474.0,0.00049589,60]
[358566417,1745269102583,-474.0,0.00049589,60]
[358566418,1745269102610,-474.0,0.00049589,60]
[358566419,1745269102635,-474.0,0.00049589,60]
[358566420,1745269102661,-474.0,0.00049589,60]
[358566421,1745269102686,-474.0,0.00049589,60]
[358566422,1745269102713,-474.0,0.00049589,60]
[358566423,1745269102739,-474.0,0.00049589,60]
[358566424,1745269102766,-474.0,0.00049589,60]
[358566425,1745269102792,-474.0,0.00049589,60]
[358566426,1745269102819,-474.0,0.00049589,60]
[358566427,1745269102846,-253.0,0.00049589,60]
[358566428,1745269102871,-253.0,0.00049589,60]
[358566429,1745269102896,-253.0,0.00049589,60]
[358566430,1745269102921,-253.0,0.00049589,60]
[358566431,1745269102947,-253.0,0.00049589,60]
[358566432,1745269102973,-253.0,0.00049589,60]
[358566433,1745269102998,-253.0,0.00049589,60]
[358566434,1745269103025,-253.0,0.00049589,60]
[358566435,1745269103052,-253.0,0.00049589,60]
[358566436,1745269103078,-253.0,0.00049589,60]
[358566437,1745269103104,-253.0,0.00049589,60]
[358566438,1745269103130,-253.0,0.00049589,60]
[358566439,1745269103156,-253.0,0.00049589,60]
[358566440,1745269103182,-253.0,0.00049589,60]
[358566441,1745269103209,-474.0,0.00049589,60]
[358566442,1745269103235,-474.0,0.00049589,60]
[358566443,1745269103261,-474.0,0.00049589,60]
[358566444,1745269103288,-474.0,0.00049589,60]
[358566445,1745269103314,-474.0,0.00049589,60]
[358566446,1745269103341,-474.0,0.00049589,60]
[358566447,1745269103367,-474.0,0.00049589,60]
[358566448,1745269103392,-474.0,0.00049589,60]
[358566449,1745269103420,-474.0,0.00049589,60]
[358566450,1745269103447,-474.0,0.00049589,60]
[358566451,1745269103473,-474.0,0.00049589,60]
[358566452,1745269103500,-474.0,0.00049589,60]
[358566453,1745269103526,-474.0,0.00049589,60]
[358566454,1745269103552,-474.0,0.00049589,60]
[358566455,1745269103578,-253.0,0.00049589,60]
[358566456,1745269103604,-253.0,0.00049589,60]
[358566457,1745269103630,-253.0,0.00049589,60]
[358566458,1745269103656,-253.0,0.00049589,60]
[358566459,1745269103682,-253.0,0.00049589,60]
[358566460,1745269103708,-253.0,0.00049589,60]
[358566461,1745269103734,-253.0,0.00049589,60]
[358566462,1745269103759,-253.0,0.00049589,60]
[358566463,1745269103786,-253.0,0.00049589,60]
[358566464,1745269103811,-253.0,0.00049589,60]
[358566465,1745269103837,-253.0,0.00049589,60]
[358566466,1745269103862,-253.0,0.00049589,60]
[358566467,1745269103887,-253.0,0.00049589,60]
[358566468,1745269103912,-253.0,0.00049589,60]
[358566469,1745269103938,-474.0,0.00049589,60]
[358566470,1745269103964,-474.0,0.00049589,60]
[358566471,1745269103991,-474.0,0.00049589,60]
[358566472,1745269104019,-474.0,0.00049589,60]
[358566473,1745269104044,-474.0,0.00049589,60]
[358566474,1745269104072,-474.0,0.00049589,60]
[358566475,1745269104099,-474.0,0.00049589,60]
[358566476,1745269104126,-474.0,0.00049589,60]
[358566477,1745269104154,-474.0,0.00049589,60]
[358566478,1745269104180,-474.0,0.00049589,60]
[358566479,1745269104207,-474.0,0.00049589,60]
[358566480,1745269104235,-474.0,0.00049589,60]
[358566481,1745269104261,-474.0,0.00049589,60]
[358566482,1745269104289,-474.0,0.00049589,60]
[358566483,1745269104315,-253.0,0.00049589,60]
[358566484,1745269104348,-253.0,0.00049589,60]
[358566485,1745269104374,-253.0,0.00049589,60]
[358566486,1745269104400,-253.0,0.00049589,60]
[358566487,1745269104426,-253.0,0.00049589,60]
[358566488,1745269104454,-253.0,0.00049589,60]
[358566489,1745269104479,-253.0,0.00049589,60]
[358566490,1745269104508,-253.0,0.00049589,60]
[358566491,1745269104534,-253.0,0.00049589,60]
[358566492,1745269104561,-253.0,0.00049589,60]
[358566493,1745269104588,-253.0,0.00049589,60]
[358566494,1745269104805,-253.0,0.00049589,60]
[358566495,1745269104833,-253.0,0.00049589,60]
[358566496,1745269104861,-253.0,0.00049589,60]
[358566497,1745269104888,-474.0,0.00049589,60]
[358566498,1745269104915,-474.0,0.00049589,60]
[358566499,1745269104942,-474.0,0.00049589,60]
[358566500,1745269104969,-474.0,0.00049589,60]
[358566501,1745269104996,-474.0,0.00049589,60]
[358566502,1745269105024,-474.0,0.00049589,60]
[358566503,1745269105051,-474.0,0.00049589,60]
[358566504,1745269105079,-474.0,0.00049589,60]
[358566505,1745269105108,-474.0,0.00049589,60]
[358566506,1745269105136,-474.0,0.00049589,60]
[358566507,1745269105164,-474.0,0.00049589,60]
[358566508,1745269105192,-474.0,0.00049589,60]
[358566509,1745269105221,-474.0,0.00049589,60]
[358566510,1745269105248,-474.0,0.00049589,60]
[358566511,1745269105275,-253.0,0.00049589,60]
[358566512,1745269105301,-253.0,0.00049589,60]
[358566513,1745269105327,-253.0,0.00049589,60]
[358566514,1745269105356,-253.0,0.00049589,60]
[358566515,1745269105383,-253.0,0.00049589,60]
[358566516,1745269105409,-253.0,0.00049589,60]
[358566517,1745269105435,-253.0,0.00049589,60]
[358566518,1745269105461,-253.0,0.00049589,60]
[358566519,1745269105489,-253.0,0.00049589,60]
[358566520,1745269105517,-253.0,0.00049589,60]
[358566521,1745269105543,-253.0,0.00049589,60]
[358566522,1745269105571,-253.0,0.00049589,60]
[358566523,1745269105597,-253.0,0.00049589,60]
[358566524,1745269105623,-253.0,0.00049589,60]
[358566525,1745269105651,-474.0,0.00049589,60]
[358566526,1745269105678,-474.0,0.00049589,60]
[358566527,1745269105705,-474.0,0.00049589,60]
[358566528,1745269105731,-474.0,0.00049589,60]
[358566529,1745269105758,-474.0,0.00049589,60]
[358566530,1745269105784,-474.0,0.00049589,60]
[358566531,1745269105810,-474.0,0.00049589,60]
[358566532,1745269105836,-474.0,0.00049589,60]
[358566533,1745269105864,-474.0,0.00049589,60]
[358566534,1745269105891,-474.0,0.00049589,60]
[358566535,1745269105918,-474.0,0.00049589,60]
[358566536,1745269105944,-474.0,0.00049589,60]
[358566537,1745269105971,-474.0,0.00049589,60]
[358566538,1745269105998,-474.0,0.00049589,60]
[358566539,1745269106025,-253.0,0.00049589,60]
[358566540,1745269106051,-253.0,0.00049589,60]
[358566541,1745269106077,-253.0,0.00049589,60]
[358566542,1745269106102,-253.0,0.00049589,60]
[358566543,1745269106128,-253.0,0.00049589,60]
[358566544,1745269106154,-253.0,0.00049589,60]
[358566545,1745269106181,-253.0,0.00049589,60]
[358566546,1745269106208,-253.0,0.00049589,60]
[358566547,1745269106234,-253.0,0.00049589,60]
[358566548,1745269106260,-253.0,0.00049589,60]
[358566549,1745269106286,-253.0,0.00049589,60]
[358566550,1745269106311,-253.0,0.00049589,60]
[358566551,1745269106343,-253.0,0.00049589,60]
[358566552,1745269106369,-253.0,0.00049589,60]
[358566553,1745269106395,-169.0,0.00049589,120]
[358566554,1745269106421,-600.0,0.00049669,120]
[358566555,1745269106451,-315.85990224,0.0004977,120]
[358566556,1745269106479,-1000000.0,0.000498,120]
[358566557,1745269106505,-1632.04068258,0.000498,120]
[358566558,1745269106532,-629.509786,0.00049863,120]
[358566559,1745269106560,-571.892923,0.00049863,120]
[358566560,1745269106586,-1890.77893,0.00049863,120]
[358566561,1745269106612,-500.0,0.00049863,120]
[358566562,1745269106638,-791.37,0.00049863,120]
[358566563,1745269106662,-790.22,0.00049863,60]
[358566564,1745269106688,-500.0,0.00049863,120]
[358566565,1745269106713,-1023.25,0.00049863,120]
[358566566,1745269106740,-500.0,0.00049863,120]
[358566567,1745269106765,-352.91301954,0.00049863,120]
[358566568,1745269106790,-500.0,0.00049863,120]
[358566569,1745269106815,-500.0,0.00049863,120]
[358566570,1745269106842,-529.82,0.00049863,120]
[358566571,1745269106868,-969.44,0.00049863,120]
[358566572,1745269106893,-500.0,0.00049863,120]
[358566573,1745269106918,-847.27,0.00049863,120]
[358566574,1745269106943,-546.66,0.00049863,120]
[358566575,1745269106969,-500.0,0.00049863,120]
[358566576,1745269106994,-500.0,0.00049863,120]
[358566577,1745269107019,-500.0,0.00049863,120]
[358566578,1745269107048,-980.71,0.00049863,120]
[358566579,1745269107075,-500.0,0.00049863,120]
[358566580,1745269107103,-533.56,0.00049863,120]
[358566581,1745269107128,-2474.26,0.00049863,120]
[358566582,1745269107153,-500.0,0.00049863,120]
[358566583,1745269107179,-500.0,0.00049863,120]
[358566584,1745269107204,-2340.33,0.00049863,120]
[358566585,1745269107229,-710.84,0.00049863,120]
[358566586,1745269107254,-519.36,0.00049863,120]
[358566587,1745269107280,-500.0,0.00049863,120]
[358566588,1745269107306,-532.15661193,0.00049863,120]
[358566589,1745269107524,-500.0,0.00049863,120]
[358566590,1745269107551,-858.69,0.00049863,120]
[358566591,1745269107577,-500.0,0.00049863,120]
[358566592,1745269107601,-500.0,0.00049863,120]
[358566593,1745269107626,-520.73066437,0.00049863,120]
[358566594,1745269107651,-1419.16,0.00049863,120]
[358566595,1745269107676,-500.0,0.00049863,120]
[358566596,1745269107702,-500.0,0.00049863,120]
[358566597,1745269107727,-500.0,0.00049863,120]
[358566598,1745269107753,-500.0,0.00049863,120]
[358566599,1745269107778,-1001.34,0.00049863,120]
[358566600,1745269107803,-500.0,0.00049863,120]
[358566601,1745269107829,-500.0,0.00049863,120]
[358566602,1745269107854,-604.48,0.00049863,120]
[358566603,1745269107880,-1198.33,0.00049863,120]
[358566604,1745269107906,-527.57,0.00049863,120]
[358566605,1745269107932,-224.30726549,0.00049863,120]
[358566606,1745269107958,-951.19,0.00049863,120]
[358566607,1745269107986,-500.0,0.00049863,120]
[358566608,1745269108012,-500.0,0.00049863,120]
[358566609,1745269108038,-500.0,0.00049863,120]
[358566610,1745269108064,-596.37,0.00049863,120]
[358566611,1745269108091,-973.67,0.00049863,120]
[358566612,1745269108117,-1522.45,0.00049863,120]
[358566613,1745269108143,-1221.11,0.00049863,120]
[358566614,1745269108169,-567.4,0.00049863,120]
[358566615,1745269108196,-2145.1,0.00049863,120]
[358566616,1745269108223,-678.03,0.00049863,120]
[358566617,1745269108249,-226.41469851,0.00049863,120]
[358566618,1745269108276,-500.0,0.00049863,120]
[358566619,1745269108302,-525.77,0.00049863,120]
[358566620,1745269108328,-948.97,0.00049863,120]
[358566621,1745269108358,-1959.65,0.00049863,120]
[358566622,1745269108384,-853.74,0.00049863,120]
[358566623,1745269108409,-1677.09,0.00049863,35]
[358566624,1745269108438,-1317.58,0.00049863,120]
[358566625,1745269108463,-1484.19,0.00049863,120]
[358566626,1745269108488,-797.08,0.00049863,120]
[358566627,1745269108515,-1336.46,0.00049863,120]
[358566628,1745269108540,-529.94,0.00049863,120]
[358566629,1745269108567,-1357.54,0.00049863,120]
[358566630,1745269108593,-2009.27,0.00049863,120]
[358566631,1745269108619,-1174.25,0.00049863,120]
[358566632,1745269108644,-500.0,0.00049863,120]
[358566633,1745269108670,-672.04,0.00049863,120]
[358566634,1745269108695,-3677.99,0.00049863,120]
[358566635,1745269108722,-2099.91,0.00049863,120]
[358566636,1745269108748,-500.0,0.00049863,120]
[358566637,1745269108774,-1579.09,0.00049863,120]
[358566638,1745269108800,-690.93,0.00049863,120]
[358566639,1745269108825,-500.0,0.00049863,120]
[358566640,1745269108851,-593.3,0.00049863,120]
[358566641,1745269108877,-500.0,0.00049863,120]
[358566642,1745269108902,-500.0,0.00049863,120]
[358566643,1745269108929,-1104.86,0.00049863,120]
[358566644,1745269108958,-1385.14,0.00049863,120]
[358566645,1745269108984,-500.0,0.00049863,120]
[358566646,1745269109009,-831.53,0.00049863,120]
[358566647,1745269109034,-500.0,0.00049863,120]
[358566648,1745269109059,-949.77,0.00049863,120]
[358566649,1745269109083,-772.47,0.00049863,120]
[358566650,1745269109109,-1494.4,0.00049863,120]
[358566651,1745269109134,-623.44,0.00049863,120]
[358566652,1745269109159,-500.0,0.00049863,120]
[358566653,1745269109184,-500.0,0.00049863,120]
[358566654,1745269109210,-847.59,0.00049863,120]
[358566655,1745269109236,-1480.63,0.00049863,120]
[358566656,1745269109261,-377.01174023,0.00049863,120]
[358566657,1745269109286,-594.54,0.00049863,120]
[358566658,1745269109312,-881.75,0.00049863,120]
[358566659,1745269109338,-1003.48,0.00049863,120]
[358566660,1745269109367,-583.01,0.00049863,120]
[358566661,1745269109393,-500.0,0.00049863,120]
[358566662,1745269109419,-1222.77,0.00049863,120]
[358566663,1745269109446,-500.0,0.00049863,120]
[358566664,1745269109472,-500.0,0.00049863,120]
[358566665,1745269109498,-546.21,0.00049863,120]
[358566666,1745269109526,-500.0,0.00049863,120]
[358566667,1745269109552,-500.0,0.00049863,120]
[358566668,1745269109578,-500.0,0.00049863,120]
[358566669,1745269109604,-706.63,0.00049863,120]
[358566670,1745269109631,-500.0,0.00049863,120]
[358566671,1745269109660,-540.95,0.00049863,120]
[358566672,1745269109684,-956.86,0.00049863,120]
[358566673,1745269109710,-884.65,0.00049863,120]
[358566674,1745269109734,-500.0,0.00049863,120]
[358566675,1745269109760,-826.96,0.00049863,120]
[358566676,1745269109787,-863.91,0.00049863,120]
[358566677,1745269109813,-786.17,0.00049863,120]
[358566678,1745269109839,-500.0,0.00049863,120]
[358566679,1745269109867,-814.8,0.00049863,120]
[358566680,1745269109893,-514.13,0.00049863,120]
[358566681,1745269109919,-1290.34,0.00049863,120]
[358566682,1745269109948,-743.09,0.00049863,120]
[358566683,1745269110162,-1183.26,0.00049863,120]
[358566684,1745269110188,-579.09,0.00049863,120]
[358566685,1745269110216,-947.57,0.00049863,120]
[358566686,1745269110242,-1099.51,0.00049863,120]
[358566687,1745269110268,-904.67,0.00049863,120]
[358566688,1745269110294,-500.0,0.00049863,120]
[358566689,1745269110320,-500.0,0.00049863,120]
[358566690,1745269110349,-1533.1,0.00049863,120]
[358566691,1745269110375,-717.75,0.00049863,120]
[358566692,1745269110402,-500.0,0.00049863,120]
[358566693,1745269110430,-729.68,0.00049863,120]
[358566694,1745269110459,-601.4,0.00049863,120]
[358566695,1745269110485,-779.43,0.00049863,120]
[358566696,1745269110512,-379.72137683,0.00049863,120]
[358566697,1745269110540,-1738.61,0.00049863,120]
[358566698,1745269110567,-500.0,0.00049863,120]
[358566699,1745269110594,-706.3,0.00049863,120]
[358566700,1745269110632,-500.0,0.00049863,120]
[358566701,1745269110662,-500.0,0.00049863,120]
[358566702,1745269110689,-612.25,0.00049863,120]
[358566703,1745269110716,-1772.65,0.00049863,120]
[358566704,1745269110742,-501.84,0.00049863,120]
[358566705,1745269110769,-181.6216739,0.00049863,120]
[358566706,1745269110796,-1438.84,0.00049863,120]
[358566707,1745269110822,-500.0,0.00049863,120]
[358566708,1745269110854,-927.9,0.00049863,120]
[358566709,1745269110881,-1567.41,0.00049863,120]
[358566710,1745269110910,-765.04,0.00049863,120]
[358566711,1745269110939,-500.0,0.00049863,120]
[358566712,1745269110969,-1636.3,0.00049863,120]
[358566713,1745269110996,-1871.84,0.00049863,120]
[358566714,1745269111023,-500.0,0.00049863,120]
[358566715,1745269111051,-500.0,0.00049863,120]
[358566716,1745269111078,-500.0,0.00049863,120]
[358566717,1745269111106,-658.02,0.00049863,120]
[358566718,1745269111138,-1100.31,0.00049863,120]
[358566719,1745269111166,-1543.41,0.00049863,120]
[358566720,1745269111194,-500.0,0.00049863,120]
[358566721,1745269111221,-500.0,0.00049863,120]
[358566722,1745269111249,-2906.42,0.00049863,120]
[358566723,1745269111276,-500.0,0.00049863,120]
[358566724,1745269111304,-621.72,0.00049863,120]
[358566725,1745269111332,-470.21620197,0.00049863,120]
[358566726,1745269111362,-500.0,0.00049863,120]
[358566727,1745269111390,-616.38,0.00049863,120]
[358566728,1745269111417,-829.97,0.00049863,120]
[358566729,1745269111443,-500.0,0.00049863,120]
[358566730,1745269111470,-500.0,0.00049863,120]
[358566731,1745269111497,-500.0,0.00049863,120]
[358566732,1745269111525,-506.68,0.00049863,120]
[358566733,1745269111551,-1256.12,0.00049863,120]
[358566734,1745269111579,-500.0,0.00049863,120]
[358566735,1745269111606,-1178.06,0.00049863,120]
[358566736,1745269111633,-1134.03,0.00049863,120]
[358566737,1745269111668,-2781.12,0.00049863,120]
[358566738,1745269111695,-500.0,0.00049863,120]
[358566739,1745269111723,-585.8,0.00049863,120]
[358566740,1745269111749,-500.0,0.00049863,120]
[358566741,1745269111777,-2212.34,0.00049863,120]
[358566742,1745269111804,-500.0,0.00049863,120]
[358566743,1745269111831,-821.12,0.00049863,120]
[358566744,1745269111858,-598.39,0.00049863,120]
[358566745,1745269111885,-500.0,0.00049863,120]
[358566746,1745269111912,-1195.18,0.00049863,120]
[358566747,1745269111939,-822.93,0.00049863,120]
[358566748,1745269111965,-1335.52,0.00049863,120]
[358566749,1745269111990,-1048.75,0.00049863,120]
[358566750,1745269112017,-500.0,0.00049863,120]
[358566751,1745269112042,-3596.5,0.00049863,120]
[358566752,1745269112069,-707.27,0.00049863,120]
[358566753,1745269112097,-1275.11,0.00049863,120]
[358566754,1745269112123,-816.95,0.00049863,120]
[358566755,1745269112149,-2692.57,0.00049863,120]
[358566756,1745269112175,-1117.56,0.00049863,120]
[358566757,1745269112202,-1659.14,0.00049863,120]
[358566758,1745269112228,-1047.72,0.00049863,120]
[358566759,1745269112254,-500.0,0.00049863,120]
[358566760,1745269112281,-798.15,0.00049863,120]
[358566761,1745269112311,-981.52,0.00049863,120]
[358566762,1745269112337,-500.0,0.00049863,120]
[358566763,1745269112367,-583.75,0.00049863,120]
[358566764,1745269112395,-7757.78,0.00049863,120]
[358566765,1745269112423,-1122.27,0.00049863,120]
[358566766,1745269112450,-1136.8,0.00049863,120]
[358566767,1745269112476,-1948.41,0.00049863,120]
[358566768,1745269112503,-1438.44,0.00049863,120]
[358566769,1745269112532,-500.0,0.00049863,120]
[358566770,1745269112559,-655.96,0.00049863,120]
[358566771,1745269112584,-762.02,0.00049863,120]
[358566772,1745269112611,-1721.58,0.00049863,120]
[358566773,1745269112638,-3067.74,0.00049863,120]
[358566774,1745269112664,-500.0,0.00049863,120]
[358566775,1745269112691,-1450.05,0.00049863,60]
[358566776,1745269112717,-720.4,0.00049863,120]
[358566777,1745269112744,-500.0,0.00049863,120]
[358566778,1745269112975,-500.0,0.00049863,120]
[358566779,1745269113002,-500.0,0.00049863,120]
[358566780,1745269113029,-500.0,0.00049863,120]